{"text_format":"1","workbook":"xlsx","n_sheets":4,"sheets":["DRUK ZAMÓWIENIA","Specyfikacja do zasilenia","Kalkulator i spec. konfekcji","Specyfikacja konfekcji"],"not_rendered":{"charts":0,"images":3,"macros":0,"external_links":0,"defined_names":3,"comments":0,"pivot_tables":0},"unopened":[],"bounds":{"document_bytes":16777216,"sheet_cells":100000,"rows_first":2000,"rows_last":500,"rows_between":2000,"halvings":0,"cell_chars":16384,"cell_head_chars":4096},"cells_cut":0,"cells_raw":0,"read":"whole","date_system":"1900"}

{"sheet":"DRUK ZAMÓWIENIA","index":0,"n_rows":55,"n_cols":12,"rows_kept":55,"cut":false,"hidden":false,"merged":[[46,21,51,25],[44,12,44,14],[47,3,48,9],[45,11,53,14],[40,12,40,14],[41,11,42,14],[43,12,43,14],[35,10,46,10],[41,3,41,9],[46,2,46,9],[45,2,45,9],[42,3,42,9],[42,1,42,2],[47,1,48,2],[49,1,53,9],[36,11,36,13],[0,1,0,14],[32,2,32,3],[34,2,34,6],[34,7,34,9],[29,2,29,3],[32,7,32,9],[31,4,31,6],[31,7,31,9],[32,4,32,6],[5,1,5,2],[2,1,2,4],[28,11,28,14],[29,12,29,14],[28,2,28,6],[26,7,26,9],[2,5,2,14],[31,2,31,3],[5,11,5,14],[30,2,30,3],[23,3,23,9],[29,7,29,9],[29,4,29,6],[30,4,30,6],[30,7,30,9],[20,1,20,3],[18,1,18,2],[15,1,15,14],[27,2,27,6],[12,5,12,14],[19,1,19,2],[27,7,27,9],[25,1,25,9],[2,0,57,0],[40,1,40,2],[54,1,54,15],[36,2,36,3],[36,4,36,6],[40,3,40,9],[43,1,43,9],[44,2,44,9],[38,1,39,9],[41,1,41,2],[38,11,39,14],[5,3,5,10],[30,11,35,14],[35,2,35,6],[35,7,35,9],[33,2,33,6],[33,7,33,9],[6,11,6,14],[12,1,12,4],[14,1,14,14],[10,1,10,14],[28,7,28,9],[13,1,13,14],[23,1,23,2],[22,3,22,9],[20,12,20,14],[21,1,21,14],[20,4,20,10],[22,12,22,14],[23,12,23,14],[16,1,16,14],[17,1,17,2],[4,1,4,14],[8,4,8,10],[8,1,8,3],[11,5,11,14],[9,1,9,10],[8,11,8,14],[9,11,9,14],[7,1,7,2],[6,1,6,2],[6,3,6,10],[7,11,7,14],[11,1,11,4],[7,3,7,10],[27,12,27,14],[17,3,17,14],[18,3,18,14],[22,1,22,2],[26,1,26,6],[25,11,26,14],[19,3,19,14]]}
[]
[]
["www.pluxee.pl, e-mail: kontakt@pluxeegroup.com, tel.: 22 535 14 14","Key Account Manager/Przedstawiciel Pluxee:"]
[]
[null,"I. Dane Klienta (Podmiotu zamawiającego do dokumentów finansowo-księgowych):"]
[null,"Nazwa  Firmy:",null,null,null,null,null,null,null,null,null,"Adres do wysyłki faktury Proforma oraz informacji o statusie zamówienia:"]
[null,"Ulica:",null,null,null,null,null,null,null,null,null,"e-mail:"]
[null,"Kod, miasto:",null,null,null,null,null,null,null,null,null,"Adres do przesłania dokumentów księgowych:"]
[null,"NIP:   ",null,null,"Telefon:   ",null,null,null,null,null,null,"e-mail:"]
[null,"Nr rachunku bankowego Klienta  (rachunek, z którego będą opłacane wszystkie należności wynikające z zamówienia):"]
[null,"  Zapłata przez podmiot trzeci (możliwość zapłaty przez podmiot inny niż Klient podlega akceptacji Pluxee):"]
[null,"Nazwa, adres i NIP podmiotu trzeciego : "]
[null,"Nr rachunku bankowego podmiotu trzeciego:"]
[null," Zamawiający posiada stałe miejsce prowadzenia działaności poza terytorium Polski*"]
[null," Karty są wydawane osobom zajmującym eksponowane stanowisko polityczne**"]
[null,"W przypadku konieczności wskazania na dokumentach księgowych danych ODBIORCY prosimy o uwzględnienie tego w polu UWAGI"]
[null,"II. Dostawa Kart (jeśli adres dostawy jest inny niż podany w sekcji I.):"]
[null,"Nazwa  Firmy:"]
[null,"Ulica:"]
[null,"Kod, miasto:"]
[null,"Liczba punktów doręczeń:",null,null,1,null,null,null,null,null,null,"Liczba Użytkowników Kart:"]
[null,"III. Dane osoby upoważnionej do odbioru Kart Pluxee Posiłek (prosimy o podanie danych dwóch osób):"]
[null,"Imię i nazwisko:",null,null,null,null,null,null,null,null,null,"Telefon:"]
[null,"Imię i nazwisko:",null,null,null,null,null,null,null,null,null,"Telefon:"]
[]
[null,null,null,null,null,null,null,null,null,null,null,"IV. Proponowana data dostawy Kart Pluxee Posiłek:"]
[null,"VI. Specyfikacja zamówienia Kart Pluxee Posiłek:",null,null,null,null,null,"Wartość (PLN)"]
[null,"A","Łączna ilość Kart:",null,null,null,null,0,null,null,null,"(dzień – miesiąc – rok):"]
[null,"B","Łączna wartość zasileń:",null,null,null,null,0,null,null,null,"V. Proponowana data zasilenia/aktywacji Kart:"]
[null,"C","Prowizja od wartości zasilenia Kart (4%/min.25zł)",null,0.04,null,null,{"$f":"IF(E30*H29<=25,25,E30*H29)","v":25},null,null,null,"(dzień – miesiąc – rok):"]
[null,"D","Opłata za przygotowanie i dostawę przesyłki\n(1 miejsce dostawy):",null,60,null,null,{"$f":"E31*E21","v":60},null,null,null,"UWAGI:"]
[null,"E","Konfekcja wg kalkulatora:",null,null,null,null,{"$f":"'Kalkulator i spec. konfekcji'!E31","v":0}]
[null,"F","Opłata za wydanie Kart (A*F):",null,13.9,null,null,{"$f":"E33*H28","v":0}]
[null,null,"Suma netto:",null,null,null,null,{"$f":"H29+H30+H31+H32+H33","v":85}]
[null,"G","Podatek VAT (23%) (od poz. C+D+E+F):",null,null,null,null,{"$f":"ROUND(23%*H30,2)+ROUND(23%*SUM(H31:I33),2)","v":19.55}]
[null,"H","Razem do zapłaty (poz. B+C+D+E+F+G)",null,null,null,null,{"$f":"H34+H35","v":104.55}]
[]
[]
[null,"IX. Wypełnia Klient (dane osoby, która sporządziła niniejsze zamówienie oraz          pieczęć firmowa):",null,null,null,null,null,null,null,null,null," VIII. Nr tel. komórkowego na potrzeby konfekcji:"]
[]
[null,"Imię i nazwisko:",null,null,null,null,null,null,null,null,null,"Numer telefonu do wysyłki SMS z hasłem:"]
[null,"E-mail:",null,null,null,null,null,null,null,null,null,"X. Wypełnia Pluxee (dane osoby, która przyjęła niniejsze zamówienie):"]
[null,"Nr telefonu:"]
[null,"Prosimy zaznacz poniższe zgody, jeśli dotychczas ich nie wyrażałaś/eś:",null,null,null,null,null,null,null,null,null,"Imię i Nazwisko:"]
[null,null,"Wyrażam dobrowolną zgodę na otrzymywanie informacji handlowych i marketingowych od Pluxee na podany przeze mnie adres poczty elektronicznej",null,null,null,null,null,null,null,null,"Numer zamówienia:"]
[null,null,"Wyrażam dobrowolną zgodę na prowadzenie przez Pluxee działań marketingowych przy użyciu podanego przeze mnie numeru telefonu.",null,null,null,null,null,null,null,null,"* Oświadczenie dotyczy wykorzystywania zakupionych usług na potrzeby stałego miejsca prowadzenia działalności, które znajduje się poza terytorium Polski, w rozumieniu art. 28b ustawy z dnia 11 marca 2004 r. o podatku od towarów i usług (Dz.U. 2004 Nr54 poz 535 VAT z późn. Zm.).\n** Oświadczenie Zamawiającego dotyczy wydawania Kart osobom zajmującym eksponowane stanowisko polityczne w rozumieniu art. 2 ust. 2 ustawy z dnia 1 marca 2018 r. o przeciwdziałaniu praniu pieniędzy oraz finansowaniu terroryzmu.\nAdministratorem Twoich danych osobowych jest Pluxee Polska Sp. z o.o. z siedzibą w Warszawie, ul. Rzymowskiego 53 (\"Pluxee\"). Dane kontaktowe Inspektora Ochrony Danych: privacy.pl@pluxeegroup.com, nr tel. (22) 535 11 11. Twoje dane będą przetwarzane w celach marketingowych Pluxee (podstawa przetwarzania danych to realizacja prawnie uzasadnionych interesów Pluxee w postaci marketingu produktów i usług Pluxee – art. 6 ust. 1 lit. f) RODO), w tym w sposób zautomatyzowany (profilowanie). Pluxee wykorzystuje profilowanie prowadząc statystyki i analizy Twoich zachowań oraz preferencji, związanych z zakupem lub korzystaniem z produktów i usług Pluxee w celu lepszego dopasowania do Twoich oczekiwań oferowanych produktów i usług. W wyniku profilowania dokonywanego przez Pluxee będziesz otrzymywać informacje o produktach i usługach lepiej dostosowanych do Twoich preferencji. Tylko w przypadku, gdy wyrazisz na to wyraźną zgodę, Pluxee będzie przetwarzać Twoje dane osobowe w celu profilowania, którego skutkiem będą automatycznie podejmowane decyzje, mające dla Ciebie znaczenie np. udzielenie rabatów lub ofert specjalnych (podstawa przetwarzania danych to Twoja zgoda – art. 6 ust. 1 lit. a) RODO). Podanie przez Ciebie danych osobowych jest dobrowolne. Skutkiem niepodania danych będzie brak możliwości informowania Cię o produktach i usługach Pluxee. Twoje dane mogą być przekazywane podmiotom świadczącym na naszą rzecz usługi serwisowe z zakresu IT, usługi telemarketingu oraz podmiotom przygotowującym i realizującym dla nas wysyłkę e-maili. Dane osobowe będziemy przetwarzać do czasu ewentualnego wniesienia przez Ciebie sprzeciwu wobec przetwarzania danych, względnie - odwołania zgody, a po tym okresie wyłącznie dla celów i przez okres oraz w zakresie wymaganym przez przepisy prawa lub dla zabezpieczenia ewentualnych roszczeń. Możesz żądać dostępu do swoich danych osobowych, ich sprostowania, usunięcia lub ograniczenia przetwarzania. Masz prawo wniesienia sprzeciwu wobec przetwarzania – w tym profilowania. Masz także prawo do przenoszenia swoich danych oraz prawo cofnięcia zgody w każdym czasie, co pozostanie bez wpływu na zgodność z prawem przetwarzania dokonanego przez Pluxee przed jej cofnięciem oraz masz prawo wniesienia skargi do organu nadzorczego (Prezesa Urzędu Ochrony Danych Osobowych)."]
[null,null,"Wyrażam dobrowolną zgodę na profilowanie, którego skutkiem będą automatycznie podejmowane decyzje, mające dla mnie znaczenie – jak np. udzielenie rabatów lub ofert specjalnych. "]
[null,"Data",null,"Pieczęć firmowa i podpis"]
[]
[null,"\nWYŻEJ WYMIENIONE DANE SĄ NIEZBĘDNE DO REALIZACJI ZAMÓWIENIA\nPoprzez umieszczenie podpisu pod niniejszym Zamówieniem i jego przesłanie w formie papierowej lub elektronicznej, jak również zaakceptowanie wypełnionego Zamówienia w formie mailowej Zamawiający oświadcza, że:  \n- jest upoważniony do reprezentowania Klienta na podstawie KRS, CEIDG lub pełnomocnictwa oraz,  że \nzapoznał się i akceptuje Ogólne Warunku Świadczenia Usług \"OWU\", które stanowią integralną część zamówienia. \n- upoważnia Pluxee Polska Sp. z o.o.  do wystawienia faktury VAT bez podpisu. Dane do faktury zostały określone w punkcie I.\n- zamówione Karty są udostępnione byłym lub obecnym pracownikom lub współpracownikom. Tożsamość osób otrzymujących karty jest przez nas weryfikowana, a ich  dane są przez nas przechowywane.\nCZYTELNIE WYPEŁNIONE ZAMÓWIENIE PROSIMY WYSŁAĆ:\n- e-mailem na adres: kontakt@pluxeegroup.com\nSkładając Zamówienie Klient każdorazowo zawiera Umowę na dostawę Kart wskazanych w Zamówieniu, na warunkach określonych w tym Zamówieniu i OWU, których postanowienia zastępują postanowienia dotychczasowych, innych Umów zawartych odrębnie z Klientem.  Postanowienia dotychczasoych, odrębnych umów znajdują zastosowanie tylko w zakresie niezdefiniowanym w OWU i Zamówieniu, w szczególności w zakresie warunków cenowych.\n\n"]
[]
[]
[]
[]
[null,"Pluxee Polska Sp. z o.o. z siedzibą w Warszawie, ul. Rzymowskiego 53, 02-697 Warszawa, Sąd Rejonowy dla m. st. Warszawy w Warszawie, XIII Wydział Gospodarczy KRS , numer KRS 0000033826, Kapitał Zakładowy 3 000 000 PLN , NIP 522-23-57-343"]

{"sheet":"Specyfikacja do zasilenia","index":1,"n_rows":35,"n_cols":3,"rows_kept":35,"cut":false,"hidden":false,"merged":[[0,1,0,2],[1,0,28,0],[1,1,2,2],[2,3,29,3],[30,3,65527,3],[33,1,33,2],[34,1,34,2],[3,1,3,2]]}
[null,"SPECYFIKACJA DO ZASILENIA \nKARTY PLUXEE POSIŁEK"]
["www.pluxee.pl, e-mail: kontakt@pluxeegroup.com, tel.: 22 535 14 14","Załącznik nr do zamówienia Firmy:"]
[]
[null,"I. Zasilam Karty Pluxee Posiłek według poniższej specyfikacji:"]
[null,"WPISZ ILOŚĆ KART \n(Podać w przypadku zakupu nowych Kart)","KWOTA ZASILENIA"]
[null,"NUMER KARTY \n(Podać w przypadku doładowania posiadanych Kart)","KWOTA ZASILENIA"]
[]
[]
[]
[]
[]
[]
[]
[]
[]
[]
[]
[]
[]
[]
[]
[]
[]
[]
[]
[]
[]
[]
[null,"RAZEM ILOŚĆ KART:"]
[]
[]
[]
[]
[null,"WYPEŁNIONĄ SPECYFIKACJĘ PROSIMY WYSŁAĆ MAILEM na adres: kontakt@pluxeegroup.com,\n"]
[null,"Pluxee Polska Sp. z o.o. z siedzibą w Warszawie, ul. Rzymowskiego 53, 02-697 Warszawa, Sąd Rejonowy dla m. st. Warszawy w Warszawie,\nXIII Wydział Gospodarczy KRS , numer KRS 0000033826, Kapitał Zakładowy 3 000 000 PLN , NIP 522-23-57-343"]

{"sheet":"Kalkulator i spec. konfekcji","index":2,"n_rows":43,"n_cols":7,"rows_kept":43,"cut":false,"hidden":false,"merged":[[11,1,11,2],[24,2,24,3],[30,2,30,3],[35,1,40,4],[0,1,9,4]]}
[null,"KALKULATOR KOSZTU KONFEKCJI KART \nORAZ SPECYFIKACJA DO KONFEKCJI"]
[]
[]
[]
[]
[]
[]
[]
[]
[]
[]
[null,"PERSONALIZACJA / INSERTY",null,"Liczba Kart:"]
[]
[null,"   Ozdobne etui na koperty - projekt standardowy Pluxee",1.5,"NIE",{"$f":"IF((D14=\"TAK\"),C14*$E$12,0)","v":0},"Uzupełnij opis poniżej ",{"$f":"IF(D14 =\"NIE\",\"\",\"Proszę upełnić specyfikację konfekcji\")","v":""}]
[]
[null,"Włożenie kopert z kartami do etui ozdobnego Pluxee ",0.3,"NIE",{"$f":"IF((D16=\"TAK\"),C16*$E$12,0)","v":0},"Uzupełnij opis poniżej ",{"$f":"IF(D16 =\"NIE\",\"\",\"Proszę upełnić specyfikację konfekcji\")","v":""}]
[]
[null,"   Personalizacja nadruku na kopercie lub etui (np.imię i nazwisko, kwota) - nadruk czarno-biały ",0.49,"NIE",{"$f":"IF((D18=\"TAK\"),C18*$E$12,0)","v":0},"Uzupełnij opis poniżej ",{"$f":"IF(D18 =\"NIE\",\"\",\"Proszę upełnić specyfikację konfekcji\")","v":""}]
[]
[null,"Personalizacja nadruku niestandardowego na kopercie lub etui (np. logo klienta) - nadruk kolorowy ",0.8,"NIE",{"$f":"IF((D20=\"TAK\"),C20*$E$12,0)","v":0},null,{"$f":"IF(D20 =\"NIE\",\"\",\"Proszę upełnić specyfikację konfekcji\")","v":""}]
[]
[null,"   Dołożenie dodatkowych ulotek do kopert lub etui (format A5 lub mniejszy, złożony w 'C')",0.4,"NIE",{"$f":"IF((D22=\"TAK\"),C22*$E$12,0)","v":0},null,{"$f":"IF(D22 =\"NIE\",\"\",\"Proszę upełnić specyfikację konfekcji\")","v":""}]
[]
[]
[null,"PACZKOWANIE","Liczba oddzielnych podpaczek:"]
[]
[null,"   Pakowanie zamówienia w podziale na kilka podpaczek pod jeden adres dostawy",7,"NIE",{"$f":"IF((D27=\"TAK\"),C27*$E$25,0)","v":0},"Uzupełnij opis poniżej ",{"$f":"IF(D27 =\"NIE\",\"\",\"Proszę upełnić specyfikację konfekcji\")","v":""}]
[]
[null,"   Ułożenie kopert w paczce (np. alfabetycznie, wg kwot zasilenia, wg przesłanej listy)",0.1,"NIE",{"$f":"IF((D29=\"TAK\"),C29*$E$12,0)","v":0},"Uzupełnij opis poniżej ",{"$f":"IF(D29 =\"NIE\",\"\",\"Proszę upełnić specyfikację konfekcji\")","v":""}]
[]
[null,null,"Łącznie koszt konfekcji:",null,{"$f":"E14+E18+E22+E27+E29+E20+E16","v":0}]
[]
[]
[]
[]
[null,"Szczegółowy opis wykonania usługi: "]
[]
[]
[]
[]
[]
[]
[null,"* W przypadku personalizowanych kopert powinien zostać wypełniony standardowy załącznik Excel zawierający niezbędne dane"]

{"sheet":"Specyfikacja konfekcji","index":3,"n_rows":1,"n_cols":4,"rows_kept":1,"cut":false,"hidden":false,"merged":[]}
["Imię ","Nazwisko ","Kwota zasilenia ","Dodatkowe uwagi "]